fUSD/lending_fUSD_20260513
["ID","MTS","AMOUNT","RATE_DAILY","PERIOD"]
[422185023,1778663432000,-254.36901322,0.000135,2]
[422185021,1778663432000,-150.0,0.00013488,2]
[422185022,1778663432000,-5000.0,0.00013499,2]
[422185015,1778663432000,-150.0,0.00013488,2]
[422185046,1778663432000,-499.99999999,0.00013598,2]
[422185067,1778663432000,-505.20982406,0.00013698,2]
[422185050,1778663432000,-500.0,0.00013598,2]
[422185075,1778663432000,-500.0,0.00013699,2]
[422185072,1778663432000,-500.0,0.00013699,2]
[422185076,1778663432000,-500.0,0.00013699,2]
[422185074,1778663432000,-500.0,0.00013699,2]
[422185073,1778663432000,-501.36855681,0.00013699,2]
[422185078,1778663432000,-626.19,0.00013699,2]
[422185079,1778663432000,-626.19,0.00013699,2]
[422185077,1778663432000,-609.7506329,0.00013699,2]
[422185070,1778663432000,-500.0,0.00013698,2]
[422185080,1778663432000,-626.19,0.00013699,2]
[422185083,1778663432000,-626.19,0.00013699,2]
[422185047,1778663432000,-500.0,0.00013598,2]
[422185087,1778663432000,-542.23182778,0.00013699,2]
[422185089,1778663432000,-500.0,0.00013699,2]
[422185084,1778663432000,-626.19,0.00013699,2]
[422185085,1778663432000,-626.19,0.00013699,2]
[422185086,1778663432000,-500.0,0.00013699,2]
[422185088,1778663432000,-500.0,0.00013699,2]
[422185081,1778663432000,-626.19,0.00013699,2]
[422185071,1778663432000,-200.0,0.00013699,2]
[422185082,1778663432000,-626.19,0.00013699,2]
[422185068,1778663432000,-500.0,0.00013698,2]
[422185069,1778663432000,-500.0,0.00013698,2]
[422185048,1778663432000,-500.0,0.00013598,2]
[422185049,1778663432000,-500.0,0.00013598,2]
[422185051,1778663432000,-500.0,0.00013598,2]
[422185053,1778663432000,-500.0,0.00013598,2]
[422185055,1778663432000,-1140.69254451,0.00013656,2]
[422185056,1778663432000,-500.0,0.00013698,2]
[422185057,1778663432000,-500.0,0.00013698,2]
[422185054,1778663432000,-200.0,0.000136,4]
[422185052,1778663432000,-500.0,0.00013598,2]
[422185064,1778663432000,-500.0,0.00013698,2]
[422185059,1778663432000,-500.0,0.00013698,2]
[422185062,1778663432000,-414.99169014,0.00013698,2]
[422185060,1778663432000,-500.0,0.00013698,2]
[422185063,1778663432000,-500.0,0.00013698,2]
[422185061,1778663432000,-500.0,0.00013698,2]
[422185066,1778663432000,-500.0,0.00013698,2]
[422185058,1778663432000,-500.0,0.00013698,2]
[422185065,1778663432000,-500.0,0.00013698,2]
[422185103,1778663433000,-1140.69254451,0.00013811,2]
[422185106,1778663433000,-1140.69254451,0.00013967,2]
[422185105,1778663433000,-745.91817241,0.000139,2]
[422185109,1778663433000,-745.91817241,0.000141,2]
[422185108,1778663433000,-250.0,0.00014,2]
[422185113,1778663433000,-745.91817241,0.000143,2]
[422185112,1778663433000,-150.0,0.00014237,2]
[422185111,1778663433000,-150.0,0.00014237,2]
[422185114,1778663433000,-150.0,0.00014487,2]
[422185107,1778663433000,-150.0,0.00013987,2]
[422185110,1778663433000,-412.70938617,0.000142,2]
[422185104,1778663433000,-800.0,0.000139,5]
[422185093,1778663433000,-400.0,0.000137,5]
[422185101,1778663433000,-214.91342137,0.0001379,2]
[422185099,1778663433000,-626.19,0.00013789,2]
[422185098,1778663433000,-626.19,0.00013789,2]
[422185102,1778663433000,-600.0,0.000138,5]
[422185097,1778663433000,-626.19,0.00013789,2]
[422185095,1778663433000,-208.27114069,0.00013779,2]
[422185096,1778663433000,-626.19,0.00013789,2]
[422185094,1778663433000,-745.91817241,0.000137,2]
[422185092,1778663433000,-212.22,0.000137,2]
[422185090,1778663433000,-500.0,0.00013699,2]
[422185091,1778663433000,-552.54434627,0.00013699,2]
[422185116,1778663433000,-1000.0,0.000145,5]
[422185100,1778663433000,-160.0,0.0001379,2]
[422185117,1778663433000,-301.17449357,0.00014589,2]
[422185123,1778663433000,-269.78233509,0.000149,2]
[422185115,1778663433000,-745.91817241,0.000145,2]
[422185145,1778663433000,-283.00688122,0.00015,2]
[422185142,1778663433000,-136906.18515188,0.00015,2]
[422185143,1778663433000,-1254.41808677,0.00015,2]
[422185141,1778663433000,-48079.47604933,0.00015,2]
[422185140,1778663433000,-129967.39666852,0.00015,2]
[422185138,1778663433000,-206.46335789,0.0001499,2]
[422185139,1778663433000,-300.0,0.00014999,2]
[422185136,1778663433000,-274.52700077,0.00014986,2]
[422185118,1778663433000,-200.0,0.000146,5]
[422185137,1778663433000,-206.46335789,0.0001499,2]
[422185134,1778663433000,-181.11373458,0.00014986,2]
[422185131,1778663433000,-160.51546821,0.00014986,2]
[422185133,1778663433000,-152.15910351,0.00014986,2]
[422185135,1778663433000,-280.99702994,0.00014986,2]
[422185129,1778663433000,-1179.91666761,0.000149,2]
[422185132,1778663433000,-283.52730563,0.00014986,2]
[422185121,1778663433000,-301.17449357,0.00014744,2]
[422185119,1778663433000,-200.0,0.000147,5]
[422185122,1778663433000,-200.0,0.000148,5]
[422185144,1778663433000,-12919.10896777,0.00015,2]
[422185120,1778663433000,-745.91817241,0.000147,2]
[422185124,1778663433000,-301.17449357,0.000149,2]
[422185127,1778663433000,-200.0,0.000149,5]
[422185126,1778663433000,-25000.0,0.000149,3]
[422185130,1778663433000,-745.91817241,0.000149,2]
[422185128,1778663433000,-1058.95312757,0.000149,2]
[422185125,1778663433000,-412.70938617,0.000149,2]
[422185148,1778663434000,-584.53447907,0.00014122,2]
[422185156,1778663438000,-7242.02730307,0.00015,2]
[422185155,1778663438000,-3099.51368162,0.00015,2]
[422185154,1778663438000,-202.92129043,0.000149,2]
[422185153,1778663438000,-1140.69254451,0.00014278,2]
[422185152,1778663438000,-556.15806544,0.00014122,2]
[422185759,1778663443000,-300.0,0.00014433,2]
[422186133,1778663446000,-388.56,0.00014433,2]
[422186131,1778663446000,-500.0,0.00013598,2]
[422186153,1778663447000,-452.13254451,0.00014433,2]
[422186155,1778663447000,-194.9294404,0.000149,2]
[422186157,1778663447000,-78203.76859601,0.00015,2]
[422186434,1778663869000,158.34,7.152e-05,2]
[422186440,1778664416000,-217.0063506,0.00013308,2]
[422186441,1778664428000,3168.092107,7.945e-05,2]
[422186445,1778664444000,-35.30906992,0.00013488,2]
[422186443,1778664444000,-2000.0,0.00013376,2]
[422186444,1778664444000,-169.30934932,0.00013388,2]
[422186442,1778664444000,-740.562662,0.00013308,2]
[422186466,1778664631000,-7979.49,0.00013671,2]
[422186464,1778664631000,-150.0,0.0001363,2]
[422186465,1778664631000,-150.0,0.00013666,2]
[422186467,1778664631000,-150.0,0.00013675,2]
[422186462,1778664631000,-154.8096066,0.0001363,2]
[422186471,1778664631000,-150.0,0.00013737,2]
[422186470,1778664631000,-150.0,0.00013702,2]
[422186469,1778664631000,-170.53,0.00013699,2]
[422186463,1778664631000,-163.36,0.0001363,2]
[422186472,1778664631000,-171.13,0.00013741,2]
[422186473,1778664631000,-150.0,0.00013773,2]
[422186468,1778664631000,-172.32882523,0.00013698,2]
[422186461,1778664631000,-583.01691458,0.00013629,2]
[422186458,1778664631000,-148.66906887,0.00013595,2]
[422186456,1778664631000,-150.0,0.00013523,2]
[422186457,1778664631000,-150.0,0.00013559,2]
[422186474,1778664631000,-150.0,0.00013787,2]
[422186460,1778664631000,-616.98308542,0.00013629,2]
[422186455,1778664631000,-150.0,0.00013488,2]
[422186451,1778664631000,-150.0,0.00013488,2]
[422186453,1778664631000,-150.0,0.00013488,2]
[422186452,1778664631000,-152.74636837,0.00013488,2]
[422186450,1778664631000,-150.0,0.00013488,2]
[422186454,1778664631000,-150.0,0.00013488,2]
[422186449,1778664631000,-114.69093008,0.00013488,2]
[422186448,1778664631000,-152.81,0.00013311,2]
[422186459,1778664631000,-1.33093113,0.00013595,2]
[422186475,1778664631000,-150.0,0.00013809,2]
[422186508,1778664631000,-200.0,0.000141,5]
[422186477,1778664631000,-150.0,0.00013862,2]
[422186528,1778664631000,-150.0,0.00014237,2]
[422186526,1778664631000,-150.0,0.00014237,2]
[422186521,1778664631000,-39185.0484,0.00014208,2]
[422186524,1778664631000,-150.0,0.00014237,2]
[422186520,1778664631000,-150.0,0.00014201,2]
[422186518,1778664631000,-500.0,0.000142,5]
[422186516,1778664631000,-500.0,0.00014166,2]
[422186506,1778664631000,-150.0,0.00014094,2]
[422186510,1778664631000,-150.0,0.0001413,2]
[422186514,1778664631000,-150.0,0.00014166,2]
[422186476,1778664631000,-150.0,0.00013844,2]
[422186503,1778664631000,-150.0,0.00014087,2]
[422186494,1778664631000,-158.34,0.00014023,2]
[422186512,1778664631000,-170.53,0.00014135,2]
[422186499,1778664631000,-150.0,0.00014059,2]
[422186478,1778664631000,-150.0,0.0001388,2]
[422186481,1778664631000,-208.27114069,0.0001388,2]
[422186480,1778664631000,-150.0,0.0001388,2]
[422186497,1778664631000,-150.0,0.0001405,2]
[422186482,1778664631000,-160.0,0.0001388,2]
[422186485,1778664631000,-170.53,0.00013917,2]
[422186483,1778664631000,-214.91342137,0.0001388,2]
[422186488,1778664631000,-150.0,0.00013987,2]
[422186486,1778664631000,-150.0,0.00013952,2]
[422186490,1778664631000,-250.0,0.00014,2]
[422186501,1778664631000,-166.05,0.00014082,2]
[422186493,1778664631000,-150.0,0.00014023,2]
[422186484,1778664631000,-150.0,0.00013916,2]
[422186540,1778664632000,-150.0,0.00014344,2]
[422186536,1778664632000,-700.0,0.000143,5]
[422186532,1778664632000,-386.6983,0.00014261,2]
[422186538,1778664632000,-150.0,0.00014308,2]
[422186530,1778664632000,-150.0,0.00014237,2]
[422186534,1778664632000,-150.0,0.00014273,2]
[422186544,1778664632000,-150.0,0.0001438,2]
[422186561,1778664632000,-150.0,0.00014522,2]
[422186546,1778664632000,-150.0,0.00014387,2]
[422186542,1778664632000,-170.53,0.00014353,2]
[422186552,1778664632000,-150.0,0.00014424,2]
[422186550,1778664632000,-150.0,0.00014415,2]
[422186559,1778664632000,-1200.0,0.000145,5]
[422186563,1778664632000,-150.0,0.00014558,2]
[422186554,1778664632000,-150.0,0.00014451,2]
[422186548,1778664632000,-1000.0,0.000144,5]
[422186696,1778664633000,-300.0,0.00014899,2]
[422186698,1778664633000,-666.0,0.00014899,2]
[422186702,1778664633000,-500.0,0.00014899,2]
[422186701,1778664633000,-317.4904801,0.00014899,2]
[422186699,1778664633000,-300.0,0.00014899,2]
[422186700,1778664633000,-456.69665591,0.00014899,2]
[422186703,1778664633000,-511.26367736,0.00014899,2]
[422186707,1778664633000,-500.0,0.00014899,2]
[422186706,1778664633000,-500.0,0.00014899,2]
[422186705,1778664633000,-500.0,0.00014899,2]
[422186697,1778664633000,-300.0,0.00014899,2]
[422186710,1778664633000,-500.0,0.00014899,2]
[422186715,1778664633000,-500.0,0.00014899,2]
[422186716,1778664633000,-500.0,0.00014899,2]
[422186704,1778664633000,-527.42,0.00014899,2]
[422186694,1778664633000,-424.53150474,0.0001489,2]
[422186690,1778664633000,-452.96907143,0.00014883,2]
[422186695,1778664633000,-300.0,0.00014899,2]
[422186678,1778664633000,-500.0,0.00014849,2]
[422186677,1778664633000,-357.96148386,0.00014849,2]
[422186679,1778664633000,-452.96907143,0.0001485,2]
[422186680,1778664633000,-383.24017949,0.0001485,2]
[422186681,1778664633000,-178.31621022,0.0001485,2]
[422186684,1778664633000,-4456.90140357,0.00014865,2]
[422186683,1778664633000,-5675.05415141,0.00014856,2]
[422186693,1778664633000,-424.53150474,0.0001489,2]
[422186682,1778664633000,-476.56354585,0.0001485,2]
[422186691,1778664633000,-393.0,0.00014884,2]
[422186687,1778664633000,-5675.05415141,0.00014878,2]
[422186686,1778664633000,-5675.05415141,0.00014867,2]
[422186688,1778664633000,-150.0,0.00014879,2]
[422186689,1778664633000,-4456.90140357,0.00014882,2]
[422186712,1778664633000,-500.0,0.00014899,2]
[422186692,1778664633000,-5675.05415141,0.00014889,2]
[422186685,1778664633000,-452.96907143,0.00014867,2]
[422186714,1778664633000,-500.0,0.00014899,2]
[422186708,1778664633000,-500.0,0.00014899,2]
[422186711,1778664633000,-500.0,0.00014899,2]
[422186737,1778664633000,-500.0,0.00014899,2]
[422186738,1778664633000,-500.0,0.00014899,2]
[422186736,1778664633000,-500.0,0.00014899,2]
[422186735,1778664633000,-500.0,0.00014899,2]
[422186741,1778664633000,-427.38832037,0.00014899,2]
[422186740,1778664633000,-500.0,0.00014899,2]
[422186742,1778664633000,-72.61167963,0.00014899,2]
[422186739,1778664633000,-500.0,0.00014899,2]
[422186709,1778664633000,-500.0,0.00014899,2]
[422186744,1778664633000,-226.82248261,0.00014899,2]
[422186743,1778664633000,-273.17751739,0.00014899,2]
[422186748,1778664633000,-286.75895081,0.00014899,2]
[422186749,1778664633000,-524.24104919,0.000149,2]
[422186747,1778664633000,-213.24104919,0.00014899,2]
[422186751,1778664633000,-257.14103038,0.000149,2]
[422186750,1778664633000,-280.63250004,0.000149,2]
[422186745,1778664633000,-160.52104919,0.00014899,2]
[422186733,1778664633000,-527.2056154,0.00014899,2]
[422186746,1778664633000,-339.47895081,0.00014899,2]
[422186732,1778664633000,-500.0,0.00014899,2]
[422186734,1778664633000,-500.0,0.00014899,2]
[422186713,1778664633000,-500.0,0.00014899,2]
[422186718,1778664633000,-500.0,0.00014899,2]
[422186720,1778664633000,-500.0,0.00014899,2]
[422186719,1778664633000,-500.0,0.00014899,2]
[422186721,1778664633000,-500.0,0.00014899,2]
[422186723,1778664633000,-500.0,0.00014899,2]
[422186725,1778664633000,-500.0,0.00014899,2]
[422186717,1778664633000,-500.0,0.00014899,2]
[422186724,1778664633000,-500.0,0.00014899,2]
[422186728,1778664633000,-500.0,0.00014899,2]
[422186727,1778664633000,-155.0,0.00014899,2]
[422186726,1778664633000,-500.0,0.00014899,2]
[422186730,1778664633000,-500.0,0.00014899,2]
[422186729,1778664633000,-500.0,0.00014899,2]
[422186731,1778664633000,-500.0,0.00014899,2]
[422186722,1778664633000,-500.0,0.00014899,2]
[422186764,1778664637000,-345.69,0.000149,2]
[422186769,1778664637000,-178.31621022,0.000149,2]
[422186768,1778664637000,-383.24017949,0.000149,2]
[422186770,1778664637000,-476.56354585,0.000149,2]
[422186767,1778664637000,-4456.90140357,0.000149,2]
[422186765,1778664637000,-25000.0,0.000149,3]
[422186766,1778664637000,-200.0,0.000149,5]
[422186763,1778664637000,-452.96907143,0.000149,2]
[422186755,1778664637000,-1402.02288427,0.000149,2]
[422186761,1778664637000,-1010772.50393612,0.000149,2]
[422186760,1778664637000,-549.87,0.000149,2]
[422186758,1778664637000,-25000.0,0.000149,3]
[422186759,1778664637000,-4138.39316388,0.000149,2]
[422186756,1778664637000,-500.0,0.000149,2]
[422186772,1778664637000,-191.98255793,0.000149,2]
[422186757,1778664637000,-11442.10683612,0.000149,2]
[422186754,1778664637000,-1199.89,0.000149,2]
[422186762,1778664637000,-3849.23719223,0.000149,3]
[422186773,1778664637000,-403.0,0.00014908,2]
[422186788,1778664637000,-403.0,0.00014994,2]
[422186774,1778664637000,-150.0,0.00014915,2]
[422186771,1778664637000,-5675.05415141,0.000149,2]
[422186793,1778664637000,-300.0,0.00014999,2]
[422186791,1778664637000,-398.54,0.00014999,2]
[422186789,1778664637000,-500.0,0.00014999,2]
[422186786,1778664637000,-424.53150474,0.0001499,2]
[422186792,1778664637000,-300.0,0.00014999,2]
[422186790,1778664637000,-500.0,0.00014999,2]
[422186785,1778664637000,-173.05899858,0.00014986,2]
[422186784,1778664637000,-156.99306241,0.00014986,2]
[422186787,1778664637000,-1680.0,0.00014992,2]
[422186783,1778664637000,-150.0,0.00014986,2]
[422186781,1778664637000,-150.0,0.00014986,2]
[422186780,1778664637000,-403.0,0.00014979,2]
[422186778,1778664637000,-150.0,0.00014951,2]
[422186779,1778664637000,-152.81,0.00014975,2]
[422186775,1778664637000,-184.94017322,0.00014915,2]
[422186777,1778664637000,-403.0,0.00014929,2]
[422186776,1778664637000,-403.0,0.00014922,2]
[422186782,1778664637000,-150.0,0.00014986,2]
[422186794,1778664638000,-666.0,0.00014999,2]
[422186796,1778664638000,-7904851.45247563,0.00015,2]
[422186797,1778664638000,-2075.73057974,0.00015,2]
[422186795,1778664638000,-300.0,0.00014999,2]
[422186799,1778664638000,-8080.85641291,0.00015,2]
[422186804,1778664638000,-327.24323424,0.00015,2]
[422186805,1778664638000,-199311.33001017,0.00015,2]
[422186801,1778664638000,-7790119.81080901,0.00015,2]
[422186807,1778664639000,-591.45792092,0.00015,2]
[422186808,1778664639000,-32067.1,0.00015,2]
[422186806,1778664639000,-899.52,0.00015,2]
[422186810,1778664640000,-1800.02694516,0.00015,2]
[422186809,1778664640000,-646.83570241,0.00015,2]
[422186815,1778664645000,-146349.743,0.00015,2]
[422186813,1778664645000,-4278.37509356,0.000149,2]
[422186814,1778664645000,-557.89013689,0.00015,2]
[422186817,1778664646000,-8076.9969931,0.00015,2]
[422186816,1778664646000,-6410.07512401,0.00015,2]
[422186818,1778664646000,-4571.80687962,0.00015,2]
[422186819,1778664646000,-1012.5,0.00015,2]
[422186820,1778664646000,-3357.63988897,0.00015,2]
[422186986,1778664812000,153.33,7.135e-05,2]
[422186999,1778665288000,465.77,0.00027397,120]
[422187005,1778665831000,-156.92,0.00013048,2]
[422187009,1778665831000,-3946.9,0.00013275,2]
[422187008,1778665831000,-1580.43,0.00013237,2]
[422187007,1778665831000,-386.98,0.00013236,2]
[422187010,1778665831000,-1200.0,0.00013487,2]
[422187013,1778665831000,-150.0,0.00013488,2]
[422187014,1778665831000,-150.0,0.00013488,2]
[422187006,1778665831000,-222.52,0.00013233,2]
[422187015,1778665831000,-150.0,0.00013488,2]
[422187020,1778665831000,-150.0,0.00013603,2]
[422187011,1778665831000,-150.0,0.00013488,2]
[422187018,1778665831000,-150.0,0.00013488,2]
[422187016,1778665831000,-150.0,0.00013488,2]
[422187019,1778665831000,-190.55,0.0001349,2]
[422187017,1778665831000,-150.0,0.00013488,2]
[422187012,1778665831000,-150.0,0.00013488,2]
[422187037,1778665832000,-166.66,0.0001411,2]
[422187035,1778665832000,-150.0,0.00014064,2]
[422187028,1778665832000,-150.0,0.00013834,2]
[422187027,1778665832000,-150.0,0.00013718,2]
[422187026,1778665832000,-166.63,0.00013702,2]
[422187029,1778665832000,-166.66,0.00013836,2]
[422187031,1778665832000,-150.0,0.00013949,2]
[422187024,1778665832000,-200.0,0.00013699,2]
[422187025,1778665832000,-166.66,0.00013699,2]
[422187030,1778665832000,-150.0,0.00013862,2]
[422187022,1778665832000,-1406.27,0.00013666,2]
[422187034,1778665832000,-156.92,0.00013995,2]
[422187023,1778665832000,-188.8,0.00013686,2]
[422187021,1778665832000,-2000.0,0.00013641,2]
[422187046,1778665832000,-166.66,0.00014247,2]
[422187032,1778665832000,-166.66,0.00013973,2]
[422187040,1778665832000,-150.0,0.00014237,2]
[422187033,1778665832000,-150.0,0.00013987,2]
[422187053,1778665832000,-200.0,0.000143,5]
[422187051,1778665832000,-150.0,0.00014295,2]
[422187067,1778665832000,-148956.15965702,0.00014352,2]
[422187069,1778665832000,-19564.08133727,0.00014352,2]
[422187075,1778665832000,-1000.28149329,0.00014352,2]
[422187071,1778665832000,-14671.97529028,0.00014352,2]
[422187060,1778665832000,-587.39557065,0.00014351,2]
[422187064,1778665832000,-173.89533848,0.00014351,2]
[422187062,1778665832000,-500.0,0.00014351,2]
[422187065,1778665832000,-500.0,0.00014351,2]
[422187056,1778665832000,-227.09453106,0.00014351,2]
[422187054,1778665832000,-250.9018014,0.00014342,2]
[422187044,1778665832000,-150.0,0.00014237,2]
[422187038,1778665832000,-150.0,0.00014179,2]
[422187042,1778665832000,-150.0,0.00014237,2]
[422187050,1778665832000,-150.0,0.0001426,2]
[422187048,1778665832000,-150.07363201,0.0001426,2]
[422187058,1778665832000,-197.33354525,0.00014351,2]
[422187097,1778665837000,-500.0,0.00014351,2]
[422187089,1778665837000,-500.0,0.00014351,2]
[422187094,1778665837000,-500.0,0.00014351,2]
[422187096,1778665837000,-500.0,0.00014351,2]
[422187084,1778665837000,-500.0,0.00014351,2]
[422187087,1778665837000,-500.0,0.00014351,2]
[422187086,1778665837000,-322.98022753,0.00014351,2]
[422187083,1778665837000,-500.0,0.00014351,2]
[422187092,1778665837000,-500.0,0.00014351,2]
[422187085,1778665837000,-500.0,0.00014351,2]
[422187091,1778665837000,-500.0,0.00014351,2]
[422187088,1778665837000,-500.0,0.00014351,2]
[422187093,1778665837000,-500.0,0.00014351,2]
[422187090,1778665837000,-623.48310008,0.00014351,2]
[422187106,1778665837000,-500.0,0.000144,5]
[422187105,1778665837000,-166.66,0.00014384,2]
[422187103,1778665837000,-500.0,0.00014351,2]
[422187104,1778665837000,-1315807.50222214,0.00014352,2]
[422187100,1778665837000,-500.0,0.00014351,2]
[422187098,1778665837000,-500.0,0.00014351,2]
[422187101,1778665837000,-500.0,0.00014351,2]
[422187099,1778665837000,-500.0,0.00014351,2]
[422187095,1778665837000,-500.0,0.00014351,2]
[422187102,1778665837000,-500.0,0.00014351,2]
[422187148,1778665838000,-500.0,0.00014541,2]
[422187145,1778665838000,-500.0,0.00014541,2]
[422187151,1778665838000,-500.0,0.00014541,2]
[422187146,1778665838000,-500.0,0.00014541,2]
[422187149,1778665838000,-500.0,0.00014541,2]
[422187143,1778665838000,-500.0,0.00014541,2]
[422187139,1778665838000,-507.26527955,0.00014541,2]
[422187150,1778665838000,-500.0,0.00014541,2]
[422187144,1778665838000,-500.0,0.00014541,2]
[422187152,1778665838000,-500.0,0.00014541,2]
[422187141,1778665838000,-500.0,0.00014541,2]
[422187142,1778665838000,-500.0,0.00014541,2]
[422187147,1778665838000,-578.64878065,0.00014541,2]
[422187163,1778665838000,-500.0,0.00014541,2]
[422187164,1778665838000,-500.0,0.00014541,2]
[422187154,1778665838000,-503.35448234,0.00014541,2]
[422187156,1778665838000,-500.0,0.00014541,2]
[422187155,1778665838000,-500.0,0.00014541,2]
[422187157,1778665838000,-500.0,0.00014541,2]
[422187160,1778665838000,-500.0,0.00014541,2]
[422187158,1778665838000,-500.0,0.00014541,2]
[422187162,1778665838000,-500.0,0.00014541,2]
[422187159,1778665838000,-500.0,0.00014541,2]
[422187161,1778665838000,-500.0,0.00014541,2]
[422187165,1778665838000,-500.0,0.00014541,2]
[422187166,1778665838000,-500.0,0.00014541,2]
[422187167,1778665838000,-500.0,0.00014541,2]
[422187140,1778665838000,-327.90910475,0.00014541,2]
[422187153,1778665838000,-500.0,0.00014541,2]
[422187138,1778665838000,-500.0,0.00014541,2]
[422187122,1778665838000,-150.0,0.00014487,2]
[422187130,1778665838000,-500.0,0.00014541,2]
[422187110,1778665838000,-224.72833238,0.0001443,2]
[422187109,1778665838000,-150.0,0.0001441,2]
[422187107,1778665838000,-500.0,0.000144,5]
[422187108,1778665838000,-19812.0314,0.00014402,2]
[422187111,1778665838000,-2000.0,0.00014442,2]
[422187113,1778665838000,-33166.2013,0.00014442,2]
[422187112,1778665838000,-5000.0,0.00014442,2]
[422187114,1778665838000,-2500.0,0.00014442,2]
[422187124,1778665838000,-700.0,0.000145,5]
[422187123,1778665838000,-1100.0,0.000145,5]
[422187115,1778665838000,-570.74,0.00014442,2]
[422187118,1778665838000,-7950.07458166,0.00014452,2]
[422187119,1778665838000,-542.77961232,0.00014452,2]
[422187117,1778665838000,-759.82447881,0.00014452,2]
[422187116,1778665838000,-751.91634798,0.00014451,2]
[422187121,1778665838000,-178.31621022,0.00014452,2]
[422187120,1778665838000,-3143.98491673,0.00014452,2]
[422187127,1778665838000,-150.0,0.00014525,2]
[422187136,1778665838000,-500.0,0.00014541,2]
[422187132,1778665838000,-500.0,0.00014541,2]
[422187126,1778665838000,-7950.07458159,0.00014502,2]
[422187135,1778665838000,-500.0,0.00014541,2]
[422187176,1778665838000,-504.04936232,0.00014541,2]
[422187125,1778665838000,-18117.25917438,0.00014502,2]
[422187128,1778665838000,-250.9018014,0.00014532,2]
[422187134,1778665838000,-500.0,0.00014541,2]
[422187131,1778665838000,-500.0,0.00014541,2]
[422187137,1778665838000,-500.0,0.00014541,2]
[422187129,1778665838000,-500.0,0.00014541,2]
[422187133,1778665838000,-500.0,0.00014541,2]
[422187171,1778665838000,-500.0,0.00014541,2]
[422187210,1778665838000,-500.0,0.0001471,2]
[422187169,1778665838000,-214.82226639,0.00014541,2]
[422187213,1778665838000,-403.0,0.00014753,2]
[422187215,1778665838000,-405.0,0.00014758,2]
[422187214,1778665838000,-150.0,0.00014756,2]
[422187206,1778665838000,-500.0,0.00014709,2]
[422187205,1778665838000,-500.0,0.00014709,2]
[422187207,1778665838000,-500.0,0.00014709,2]
[422187209,1778665838000,-500.0,0.00014709,2]
[422187208,1778665838000,-500.0,0.00014709,2]
[422187211,1778665838000,-18117.25917438,0.00014751,2]
[422187212,1778665838000,-7950.07458159,0.00014751,2]
[422187218,1778665838000,-5534.4002,0.000148,2]
[422187219,1778665838000,-208.42886955,0.000148,2]
[422187216,1778665838000,-191.02515746,0.00014793,2]
[422187224,1778665838000,-403.0,0.0001481,2]
[422187223,1778665838000,-7950.07458159,0.000148,2]
[422187217,1778665838000,-182.94017322,0.00014794,2]
[422187226,1778665838000,-1680.0,0.00014835,2]
[422187220,1778665838000,-2800.0,0.000148,5]
[422187225,1778665838000,-500.0,0.00014815,2]
[422187227,1778665838000,-500.0,0.00014847,2]
[422187222,1778665838000,-18117.25917438,0.000148,2]
[422187221,1778665838000,-200.0,0.000148,5]
[422187230,1778665838000,-394.07930603,0.00014847,2]
[422187229,1778665838000,-500.0,0.00014847,2]